lending/lending_fUSD_20240207
["ID","MTS","AMOUNT","RATE_DAILY","PERIOD"]
[313403472,1707316233001,-7393.67791742,0.00031605,7]
[313403473,1707316233010,-6886.15957108,0.00031605,7]
[313403474,1707316233018,-267.01,0.00031953,2]
[313403475,1707316233027,-2518.0,0.00032005,2]
[313403476,1707316233037,-254.93,0.00032151,2]
[313403477,1707316233045,-155.0,0.000325,2]
[313403478,1707316233055,-1159.06,0.0003272,2]
[313403479,1707316233064,-188.77007004,0.0003288,2]
[313403480,1707316233074,-500.0,0.000329,2]
[313403481,1707316233084,-167.32,0.00032989,2]
[313403482,1707316233093,-550.0,0.00033,3]
[313403483,1707316233103,-2014.51508521,0.00033,2]
[313403484,1707316233112,-259.39334526,0.00033299,6]
[313403485,1707316233121,-153.39,0.000333,2]
[313403486,1707316233129,-153.39,0.000333,2]
[313403487,1707316233139,-153.39,0.000333,2]
[313403488,1707316233148,-153.39,0.000333,2]
[313403489,1707316233157,-153.39,0.000333,2]
[313403490,1707316233166,-53080.01182028,0.0003337,5]
[313403491,1707316233177,-361.875,0.0003337,5]
[313403492,1707316233191,-3036.304,0.0003337,5]
[313403493,1707316233202,-70709.26165025,0.0003337,5]
[313403500,1707316241296,-892.036634,0.00022705,2]
[313403501,1707316241307,-279.34164704,0.00022705,2]
[313403529,1707316243041,-54.09549685,0.00022705,2]
[313403530,1707316243051,-529.53549413,0.00033299,2]
[313403531,1707316243062,-27845.90807747,0.0003337,5]
[313403532,1707316243072,-500.0,0.00033379,7]
[313403533,1707316243082,-578.87814066,0.00033379,7]
[313403534,1707316243091,-430495.77684207,0.0003338,2]
[313403535,1707316243233,-500.0,0.0003338,2]
[313403536,1707316243250,-1075.45319204,0.0003338,2]
[313403537,1707316243262,-702.84622377,0.0003338,2]
[313403539,1707316243307,-9992.01851469,0.0003338,2]
[313403564,1707316246004,-155.0,0.00033378,2]
[313403565,1707316246013,-3177.62986574,0.0003338,2]
[313403566,1707316246170,-1680.6634743,0.00033378,4]
[313403567,1707316246179,-2662.09236386,0.0003338,2]
[313403613,1707317434187,-399.35094211,0.00024973,2]
[313403614,1707317434197,-266.57926775,0.00024973,2]
[313403615,1707317434207,-155.0,0.00024974,2]
[313403616,1707317434216,-155.0,0.00024975,2]
[313403617,1707317434226,-4290.5155748,0.00024975,2]
[313403618,1707317434235,-935.74665762,0.00024977,2]
[313403619,1707317434378,-150.0,0.0002498,2]
[313403620,1707317434387,-150.0,0.0002498,2]
[313403621,1707317434396,-350.0,0.00025,3]
[313403622,1707317434406,-1005.97,0.00028728,2]
[313403623,1707317434417,-1799.0,0.000292,2]
[313403624,1707317434426,-7179.0,0.000292,2]
[313403625,1707317434435,-696.98097902,0.00029455,2]
[313403626,1707317434465,-1821.01902098,0.00029455,2]
[313403627,1707317434474,-285.833,0.00029455,2]
[313403628,1707317434486,-151.008,0.00029455,2]
[313403629,1707317434496,-150.0,0.00029455,2]
[313403631,1707317434505,-150.0,0.00029455,2]
[313403633,1707317434514,-150.0,0.00029455,2]
[313403634,1707317434522,-150.258,0.00029455,2]
[313403635,1707317434531,-150.0,0.00029455,2]
[313403636,1707317434540,-209.427,0.00029455,2]
[313403637,1707317434549,-150.0,0.00029455,2]
[313403638,1707317434558,-150.518,0.00029455,2]
[313403639,1707317434567,-250.0,0.00029758,2]
[313403640,1707317434576,-250.0,0.00029869,2]
[313403641,1707317434585,-155.0,0.0003,2]
[313403642,1707317434595,-240.24,0.00030021,2]
[313403643,1707317434607,-161.22,0.00030119,2]
[313403644,1707317434616,-167.32,0.00030143,2]
[313403646,1707317434625,-150.0,0.00030145,2]
[313403647,1707317434635,-250.0,0.00030275,2]
[313403649,1707317434645,-2000.0,0.00030362,2]
[313403651,1707317434654,-152.95,0.00030375,2]
[313403653,1707317434666,-500.0,0.00030495,2]
[313403655,1707317434675,-206.0,0.00030583,2]
[313403657,1707317434685,-2705.0,0.00030686,2]
[313403659,1707317434695,-800.0,0.00030731,2]
[313403661,1707317434704,-209.02101795,0.00030779,5]
[313403663,1707317434713,-235.4510509,0.00030779,5]
[313403665,1707317434722,-153.12786381,0.00030779,5]
[313403666,1707317434731,-151.25,0.00030779,5]
[313403667,1707317434740,-202.49824881,0.00030779,5]
[313403668,1707317434749,-249.46050109,0.00030779,5]
[313403669,1707317434758,-270.85337167,0.00030779,6]
[313403670,1707317434767,-200.51532279,0.00030779,6]
[313403671,1707317434777,-224.59458542,0.00030779,6]
[313403672,1707317434786,-1005.97,0.00030992,2]
[313403673,1707317434795,-150.0,0.000311,2]
[313403674,1707317434804,-238.86,0.00031222,2]
[313403675,1707317434813,-9842.08370861,0.00031323,2]
[313403676,1707317434844,-4160.96005272,0.00031323,2]
[313403677,1707317434855,-3924.14133732,0.00031323,2]
[313403678,1707317434866,-481.536,0.00031323,2]
[313403679,1707317434900,-500.42,0.00031323,2]
[313403680,1707317434923,-269.59121782,0.00031323,2]
[313403681,1707317434934,-780.78081971,0.00031323,2]
[313403682,1707317434945,-3940.48686382,0.00031323,2]
[313403683,1707317434954,-487.6206,0.00031413,2]
[313403684,1707317434963,-226.96917712,0.00031505,5]
[313403685,1707317434972,-23191.95395906,0.00031513,7]
[313403686,1707317434984,-37626.39627124,0.00031513,7]
[313403687,1707317435000,-2781.03967879,0.00031513,7]
[313403688,1707317435011,-2404.4741709,0.00031513,7]
[313403689,1707317435023,-2613.10872722,0.00031513,7]
[313403695,1707317438159,-155.0,0.00024972,2]
[313403696,1707317438168,-1408.28248127,0.00031513,7]
[313403697,1707317438227,-75605.50698715,0.00031513,7]
[313403698,1707317438285,-1384.88189131,0.00031513,7]
[313403714,1707317440643,-1978.14942184,0.00030779,2]
[313403715,1707317440704,-814.9336574,0.00030779,2]
[313403716,1707317440715,-650.087,0.00030779,2]
[313403717,1707317440823,-111.37907836,0.00030779,2]
[313403718,1707317440832,-203.62092064,0.00031513,7]
[313403719,1707317441604,-8673.9462,0.00031513,7]
[313403766,1707317444341,-2126.3607008,0.00031513,7]
[313403767,1707317444401,-2171.25814893,0.00031513,7]
[313403768,1707317444514,-553.41,0.00031513,7]
[313403769,1707317444576,-450.0,0.00031513,7]
[313403786,1707317446221,-343.87902212,0.00031513,7]
[313403787,1707317446237,-21109.30605391,0.00031513,7]
[313403788,1707317446331,-697.31165713,0.00031513,7]
[313403789,1707317446343,-733.69388271,0.00031513,7]
[313403790,1707317446354,-2388.15000001,0.00031513,7]
[313403791,1707317446366,-264.64758707,0.00031513,7]
[313403792,1707317480494,8796.93553512,9e-05,2]
[313403793,1707317485956,1532.28968443,0.00018,2]
[313403794,1707317492008,627.28297016,0.0001,2]
[313403795,1707317494859,1330.03078388,0.0002,2]
[313403796,1707317568493,7645.21135376,0.0002246,2]
[313403797,1707317627359,6653.0,0.0002,2]
[313403798,1707317648664,3469.68155368,0.0002,2]
[313403799,1707317665754,860.96482211,0.00023,5]
[313404092,1707318446697,300.0,0.000228,8]
[313404110,1707318448798,600.0,0.000229,8]
[313404158,1707318632400,-208.06184084,0.00022709,2]
[313404159,1707318632412,-2329.28131149,0.0002271,2]
[313404160,1707318632422,-245.94706371,0.0002271,2]
[313404161,1707318632431,-1261.3831788,0.00022711,2]
[313404162,1707318632440,-935.74665762,0.00022712,2]
[313404163,1707318632449,-5176.76856712,0.00022742,2]
[313404164,1707318632458,-152.80971916,0.000228,2]
[313404165,1707318632467,-3382.08489784,0.0002286,2]
[313404166,1707318632479,-543.18256552,0.0002286,2]
[313404167,1707318632490,-2587.08183664,0.0002286,2]
[313404168,1707318632499,-724.1681,0.000229,2]
[313404169,1707318632508,-179.31134679,0.000229,2]
[313404170,1707318632517,-6978.23871657,0.0002296,2]
[313404171,1707318632528,-7382.376725,0.0002296,2]
[313404172,1707318632539,-2242.77160239,0.0002296,2]
[313404173,1707318632550,-3710.71199057,0.0002296,2]
[313404174,1707318632576,-1971.44374651,0.0002296,2]
[313404176,1707318632608,-6035.59806615,0.0002296,2]
[313404178,1707318632619,-499.05471673,0.0002296,2]
[313404180,1707318632631,-528.57058112,0.0002296,2]
[313404183,1707318632642,-75219.81447776,0.0002296,2]
[313404185,1707318632653,-12901.17294723,0.0002296,2]
[313404187,1707318632663,-7737.76657392,0.00022999,2]
[313404189,1707318632673,-1007.2399,0.00022999,2]
[313404192,1707318632682,-1000.0,0.00022999,2]
[313404194,1707318632691,-84178.99356904,0.00023,2]
[313404200,1707318632711,-354.68352,0.00023,2]
[313404203,1707318632722,-32415.88556983,0.00023,2]
[313404241,1707318638264,-993.72953937,0.00023,2]
[313404242,1707318638282,-1273.1094443,0.00023,2]
[313404243,1707318638322,-2600.239944,0.00023,2]
[313404244,1707318638340,-910.7364,0.00023,2]
[313404245,1707318638397,-24057.17617116,0.00023,2]
[313404246,1707318638414,-83282.34326238,0.00023,2]
[313404247,1707318638431,-86864.67369679,0.00023,2]
[313404248,1707318638448,-1058.031975,0.00023,2]
[313404249,1707318638469,-549.198013,0.00023,2]
[313404250,1707318638486,-2490.97927769,0.00023,2]
[313404251,1707318638506,-1050.00000162,0.00023,2]
[313404252,1707318638523,-563.68163121,0.00023,2]
[313404253,1707318638540,-588.55930921,0.00023,2]
[313404254,1707318638556,-1176.99961556,0.00023,2]
[313404255,1707318638573,-4516.69215914,0.00023,2]
[313404256,1707318638596,-440.7,0.00023,2]
[313404257,1707318638613,-7139.49937052,0.00023,2]
[313404258,1707318638629,-460.30514835,0.00023,2]
[313404259,1707318638646,-5095.36486861,0.00023,2]
[313404261,1707318638663,-1298.44268513,0.00023,2]
[313404262,1707318638680,-541.52603415,0.00023,2]
[313404263,1707318638696,-3289.80483115,0.00023,2]
[313404264,1707318638713,-7372.25454139,0.00023,2]
[313404268,1707318638730,-2107.42618141,0.00023,2]
[313404271,1707318638747,-305.43665221,0.00023,2]
[313404274,1707318638765,-647.78780175,0.00023,2]
[313404407,1707318640841,-216448.69622452,0.00023,2]
[313404408,1707318640853,-1322.46730531,0.00023,2]
[313404418,1707318641868,-398.50560464,0.00023,2]
[313404420,1707318641880,-4339.53795133,0.00023,2]
[313404423,1707318641897,-5771.59845604,0.00023,2]
[313404478,1707318643316,-9498.10814416,0.00023,2]
[313404479,1707318643329,-10470.89458384,0.00023,2]
[313404480,1707318643342,-808.11751204,0.00023,2]
[313404481,1707318643354,-20216.40154543,0.00023,2]
[313404482,1707318643366,-2177.26682898,0.00023,2]
[313404483,1707318643378,-5023.53350633,0.00023,2]
[313404484,1707318643542,-413007.68197323,0.00023,2]
[313404485,1707318643565,-456.5727416,0.00023,2]
[313404486,1707318643577,-1974.0000005,0.00023,2]
[313404487,1707318643588,-1227.15657906,0.00023,2]
[313404488,1707318643600,-299.69259314,0.00023,2]
[313404489,1707318643611,-1428.02506744,0.00023,2]
[313404499,1707318646239,-703.72867996,0.00022999,2]
[313404500,1707318646249,-5237.21198282,0.00022999,2]
[313404529,1707318646862,-805.57601337,0.00022999,2]
[313404531,1707318646871,-19198.74579688,0.00022999,2]
[313404533,1707318646880,-2315.3994446,0.00022999,2]
[313404535,1707318646889,-215210.25425201,0.00023,2]
[313404536,1707318646898,-185768.22798178,0.00023,2]
[313404537,1707318646907,-155.9251105,0.00023,2]
[313404538,1707318646916,-1030.58106699,0.00023,2]
[313404539,1707318646927,-5257.91463823,0.00023,2]
[313404540,1707318646936,-296.67037072,0.00023,2]
[313404541,1707318646946,-8508.26133119,0.00023,2]
[313404542,1707318646957,-288.16846455,0.00023,2]
[313404543,1707318646967,-237.40288908,0.00023,2]
[313404546,1707318646976,-1023.31,0.00025107,2]
[313404547,1707318646985,-360.0,0.00027135,2]
[313404549,1707318646995,-791.43,0.00027135,2]
[313404551,1707318647005,-150.0,0.00027164,2]
[313404553,1707318647014,-500.0,0.00027236,2]
[313404556,1707318647024,-1368.01,0.00027251,2]
[313404557,1707318647035,-2705.0,0.00027313,2]
[313404560,1707318647046,-1023.31,0.00027371,2]
[313404562,1707318647055,-155.0,0.00027397,2]
[313404564,1707318647064,-2000.0,0.00027569,2]
[313404566,1707318647073,-160.77,0.00027702,2]
[313404567,1707318647086,-168.18,0.00028002,2]
[313404570,1707318647096,-500.0,0.00028062,2]
[313404572,1707318647105,-250.0,0.00028156,2]
[313404573,1707318647114,-3224.68654063,0.0002868,2]
[313404575,1707318647123,-155.0,0.00028767,2]
[313404578,1707318647133,-250.0,0.00028924,2]
[313404580,1707318647142,-23900.0,0.00028924,2]
[313404582,1707318647151,-250.0,0.00029094,2]
[313404583,1707318647161,-200.0,0.00029112,2]
[313404585,1707318647169,-5474.14,0.00029134,2]
[313404588,1707318647179,-200.0,0.0002914,2]
[313404590,1707318647189,-200.2,0.00029185,2]
[313404592,1707318647198,-152.95,0.00029256,2]
[313404594,1707318647209,-174.0,0.00029256,120]
[313404596,1707318647218,-160.77,0.00029346,2]
[313404598,1707318647227,-2518.0,0.00029455,2]
[313404600,1707318647236,-1023.31,0.00029634,2]
[313404602,1707318647245,-640.0,0.00029986,2]
[313404604,1707318647255,-155.0,0.0003,2]
[313404606,1707318647264,-200.0,0.00030045,2]
[313404607,1707318647273,-199.05,0.0003009,2]
[313404610,1707318647282,-155.0,0.00030137,2]
[313404612,1707318647291,-360.0,0.00030527,2]
[313404614,1707318647301,-1425.16924444,0.00030717,2]
[313404616,1707318647310,-1000.0,0.00030779,7]
[313404618,1707318647319,-275.0,0.00030779,6]
[313404620,1707318647328,-985.51125979,0.00030779,6]
[313404622,1707318647338,-1000.0,0.00030779,7]
[313404624,1707318647347,-278.27844453,0.00030779,6]
[313404626,1707318647356,-196.32933003,0.00030779,6]
[313404628,1707318647366,-160.77,0.0003099,2]
[313404630,1707318647375,-1185.8,0.00031,7]
[313404632,1707318647384,-1425.16924444,0.00031039,2]
[313404634,1707318647392,-3000.0,0.000311,2]
[313404636,1707318647402,-1000.0,0.00031164,2]
[313404638,1707318647411,-152.95,0.00031207,2]
[313404640,1707318647420,-1071.39875026,0.0003126,14]
[313404642,1707318647430,-205.0,0.0003126,2]
[313404644,1707318647439,-767.12793414,0.00031398,3]
[313404646,1707318647448,-422.00992177,0.00031498,4]
[313404648,1707318647458,-220.13,0.000315,2]
[313404649,1707318647467,-166.96882288,0.00031504,2]
[313404651,1707318647477,-4244.56136769,0.00031504,2]
[313404653,1707318647486,-520.66768519,0.00031504,2]
[313404655,1707318647495,-155.0,0.00031507,2]
[313404657,1707318647504,-13268.77165974,0.00031513,7]
[313404659,1707318647513,-6531.97061679,0.00031513,4]
[313404661,1707318647522,-3499.94579074,0.00031513,4]
[313404663,1707318647531,-1425.16924445,0.00031566,2]
[313404665,1707318647541,-155.98756978,0.00031603,4]
[313404667,1707318647549,-396.44789779,0.00031603,4]
[313404669,1707318647558,-549.34064812,0.00031603,4]
[313404671,1707318647567,-286.19980726,0.00031603,4]
[313404673,1707318647576,-697.32652648,0.00031603,4]
[313404675,1707318647586,-573.4852303,0.00031603,4]
[313404677,1707318647595,-101964.20441016,0.00031603,2]
[313404679,1707318647604,-201.0925004,0.00031604,4]
[313404681,1707318647613,-1645.25111761,0.00031604,4]
[313404683,1707318647622,-27146.06503068,0.00031605,7]
[313404685,1707318647631,-11661.3745761,0.00031605,7]
[313404687,1707318647640,-50000.0,0.00031605,7]
[313404689,1707318647650,-10468.55795555,0.00031605,7]
[313404691,1707318647659,-7069.38614573,0.00031605,7]
[313404693,1707318647668,-7817.18658222,0.00031605,7]
[313404695,1707318647678,-180.0,0.00031644,2]
[313404697,1707318647686,-200.25,0.00031644,2]
[313404699,1707318647695,-1246.11850232,0.00031661,2]
[313404702,1707318647706,-63909.0,0.00031699,4]
[313404704,1707318647715,-1023.31,0.00031898,2]
[313404706,1707318647724,-900.0,0.000319,11]
[313404708,1707318647734,-600.0,0.00032,33]
[313404710,1707318647743,-150.0,0.00032043,2]
[313404712,1707318647752,-1000.0,0.00032048,2]
[313404714,1707318647761,-687.353,0.00032353,2]
[313404716,1707318647770,-767.12793412,0.00032353,4]
[313404718,1707318647779,-39751.76093983,0.00032454,4]
[313404719,1707318647788,-150.0,0.00032455,2]
[313404721,1707318647798,-150.0,0.00032455,2]
[313404733,1707318647894,-150.0,0.00032455,2]
[313404735,1707318647908,-2518.0,0.00032455,2]
[313404737,1707318647918,-3184.83157822,0.000325,3]
[313404739,1707318647928,-150.0,0.000325,2]
[313404741,1707318647938,-160.77,0.00032634,2]
[313404743,1707318647948,-155.0,0.00032877,2]
[313404745,1707318647960,-500.0,0.000329,2]
[313404747,1707318647969,-516.0,0.000329,2]
[313404749,1707318647978,-1300.0,0.000329,12]
[313404751,1707318647987,-1000.0,0.00032931,2]
[313404753,1707318647997,-600.0,0.00033,34]
[313404755,1707318648006,-150.0,0.00033014,2]
[313404758,1707318648015,-1108.12,0.00033038,2]
[313404760,1707318648025,-1535.38,0.00033038,2]
[313404762,1707318648035,-19847.15,0.00033038,30]
[313404763,1707318648044,-424.03,0.00033038,2]
[313404765,1707318648053,-152.95,0.00033157,2]
[313404767,1707318648062,-150.0,0.00033178,30]
[313404769,1707318648071,-150.0,0.00033178,30]
[313404771,1707318648080,-150.0,0.00033178,30]
[313404773,1707318648089,-150.0,0.00033178,30]
[313404775,1707318648109,-15132.0971,0.0003318,2]
[313404776,1707318648117,-500.0,0.0003318,2]
[313404778,1707318648126,-150.0,0.00033279,30]
[313404780,1707318648136,-150.0,0.00033279,30]
[313404782,1707318648145,-150.0,0.00033279,30]
[313404784,1707318648154,-150.0,0.00033279,30]
[313404786,1707318648164,-150.0,0.00033279,30]
[313404788,1707318648173,-150.0,0.00033279,30]
[313404790,1707318648184,-217.36970294,0.00033279,7]
[313404792,1707318648192,-160.27809314,0.00033279,7]
[313404794,1707318648201,-500.0,0.00033279,7]
[313404796,1707318648210,-425.28405748,0.00033279,7]
[313404798,1707318648218,-259.04734046,0.00033279,7]
[313404800,1707318648227,-320753.79734313,0.0003328,2]
[313404801,1707318648237,-153.4,0.000333,2]
[313404803,1707318648246,-153.4,0.000333,2]
[313404805,1707318648255,-153.4,0.000333,2]
[313404807,1707318648264,-153.4,0.000333,2]
[313404809,1707318648274,-767.12793412,0.00033307,5]
[313404811,1707318648283,-24486.72839457,0.00033347,2]
[313404814,1707318648293,-39920.331846,0.00033347,2]
[313404815,1707318648302,-1270.84780354,0.00033348,4]
[313404817,1707318648311,-720.42,0.00033349,2]
[313404820,1707318648321,-843.0,0.00033378,4]
[313404821,1707318648331,-377.03246171,0.00033378,4]
[313404823,1707318648341,-1224.39280072,0.00033378,4]
[313404825,1707318648350,-768.8565787,0.00033378,2]
[313404827,1707318648359,-181.07852074,0.00033379,4]
[313404829,1707318648369,-158.50706686,0.00033379,4]
[313404831,1707318648379,-1624.59649955,0.00033379,4]
[313404833,1707318648388,-2024.73491081,0.00033379,4]
[313404835,1707318648397,-11332.67044934,0.00033379,2]
[313404837,1707318648406,-170.8245059,0.0003338,7]
[313404839,1707318648415,-2000.0,0.0003338,2]
[313404840,1707318648424,-200.0,0.0003338,2]
[313404841,1707318648434,-92439.8844865,0.00033453,2]
[313404842,1707318648443,-150.0,0.00033475,2]
[313404843,1707318648452,-150.0,0.00033475,2]
[313404844,1707318648462,-200700.6374999,0.00033476,2]
[313404845,1707318648471,-20545.4799834,0.00033476,2]
[313404846,1707318648480,-8340.3448981,0.00033476,2]
[313404847,1707318648490,-6458.99227782,0.00033499,4]
[313404848,1707318648500,-23242.790622,0.000335,7]
[313404849,1707318648509,-1038.53,0.000335,2]
[313404850,1707318648518,-1038.53,0.000335,2]
[313404851,1707318648527,-1038.53,0.000335,2]
[313404852,1707318648536,-1038.53,0.000335,2]
[313404853,1707318648545,-1038.53,0.000335,2]
[313404854,1707318648555,-1038.53,0.000335,2]
[313404855,1707318648564,-1038.53,0.000335,2]
[313404856,1707318648573,-1038.53,0.000335,2]
[313404857,1707318648582,-1038.53,0.000335,2]
[313404858,1707318648591,-1038.53,0.000335,2]
[313404859,1707318648600,-1038.53,0.000335,2]
[313404860,1707318648609,-1038.53,0.000335,2]
[313404861,1707318648618,-1038.53,0.000335,2]
[313404862,1707318648626,-1038.53,0.000335,2]
[313404863,1707318648635,-1038.53,0.000335,2]
[313404864,1707318648645,-1038.53,0.000335,2]
[313404865,1707318648654,-1038.53,0.000335,2]
[313404866,1707318648663,-1038.53,0.000335,2]
[313404867,1707318648672,-1038.53,0.000335,2]
[313404868,1707318648682,-1038.53,0.000335,2]
[313404869,1707318648691,-732.23,0.000335,2]
[313404870,1707318648701,-154.02302844,0.00033541,2]
[313404871,1707318648710,-516.0,0.0003355,2]
[313404872,1707318648719,-150.0,0.00033599,30]
[313404873,1707318648728,-200000.0,0.000336,7]
[313404874,1707318648738,-3000.0,0.000336,2]
[313404875,1707318648746,-200.0,0.00033608,3]
[313404876,1707318648756,-800.0,0.00033608,2]
[313404877,1707318648765,-200.0,0.00033609,3]
[313404878,1707318648774,-800.0,0.00033609,2]
[313404879,1707318648783,-800.0,0.00033609,2]
[313404880,1707318648792,-215.096353,0.00033609,5]
[313404881,1707318648801,-241.83973937,0.00033714,2]
[313404882,1707318648810,-200.0,0.00033714,2]
[313404883,1707318648820,-150.0,0.00033733,7]
[313404884,1707318648828,-640.0,0.00033734,2]
[313404885,1707318648837,-164.0,0.00033778,5]
[313404886,1707318648847,-185.455454,0.000338,2]
[313404887,1707318648856,-1000.0,0.00033815,2]
[313404888,1707318648865,-215.89487942,0.00033844,2]
[313404889,1707318648874,-75000.0,0.00033863,15]
[313404890,1707318648883,-150.0,0.00033876,30]
[313404891,1707318648892,-150.0,0.00033876,30]
[313404892,1707318648901,-150.0,0.00033876,30]
[313404893,1707318648910,-150.0,0.00033876,30]
[313404894,1707318648919,-150.0,0.00033876,30]
[313404895,1707318648928,-219.36744003,0.00033878,4]
[313404896,1707318648937,-694.31782489,0.00033878,4]
[313404897,1707318648947,-4650.65386799,0.00033878,4]
[313404898,1707318648958,-275.36632723,0.00033878,4]
[313404899,1707318648967,-175.52089433,0.00033878,4]
[313404900,1707318648977,-402.03365583,0.00033878,4]
[313404901,1707318648986,-302.79374032,0.00033878,2]
[313404902,1707318648997,-534.13363385,0.00033878,4]
[313404903,1707318649006,-174.41982976,0.00033878,4]
[313404904,1707318649016,-185.5600203,0.00033878,4]
[313404905,1707318649027,-155.66000496,0.00033878,4]
[313404906,1707318649036,-266.99863098,0.00033878,4]
[313404907,1707318649046,-155.0,0.00033878,4]
[313404908,1707318649054,-309.91616206,0.00033878,2]
[313404909,1707318649063,-1534.2123171,0.00033879,4]
[313404910,1707318649073,-150.01,0.00033879,2]
[313404911,1707318649082,-3310.68912683,0.00033879,2]
[313404912,1707318649091,-5638.26868636,0.0003388,2]
[313404913,1707318649100,-3260.2311591,0.0003388,2]
[313404914,1707318649109,-152.0,0.00033895,3]
[313404915,1707318649118,-153.05688294,0.000339,2]
[313404916,1707318649128,-153.05688279,0.000339,2]
[313404917,1707318649136,-153.05688279,0.000339,2]
[313404918,1707318649145,-153.05688279,0.000339,2]
[313404919,1707318649154,-153.05688279,0.000339,2]
[313404920,1707318649163,-153.05688279,0.000339,2]
[313404921,1707318649173,-153.05688279,0.000339,2]
[313404922,1707318649183,-153.05688279,0.000339,2]
[313404923,1707318649192,-153.05688279,0.000339,2]
[313404924,1707318649201,-153.05688279,0.000339,2]
[313404925,1707318649210,-153.05688279,0.000339,2]
[313404926,1707318649219,-153.05688279,0.000339,2]
[313404927,1707318649229,-153.05688279,0.000339,2]
[313404928,1707318649238,-153.05688279,0.000339,2]
[313404929,1707318649248,-360.0,0.00033919,2]
[313404930,1707318649257,-150.0,0.00033985,2]
[313404931,1707318649267,-600.0,0.00034,35]
[313404932,1707318649276,-150.0,0.00034029,2]
[313404933,1707318649286,-150.0,0.00034029,2]
[313404934,1707318649295,-150.0,0.00034029,2]
[313404935,1707318649305,-150.0,0.00034029,2]
[313404936,1707318649314,-248.87158,0.00034029,2]
[313404937,1707318649324,-1614.785869,0.000341,16]
[313404938,1707318649333,-1023.31,0.00034162,2]
[313404939,1707318649342,-516.0,0.000342,2]
[313404940,1707318649351,-247.73314621,0.000342,4]
[313404941,1707318649361,-155.0,0.000342,4]
[313404942,1707318649370,-6917.09200454,0.00034228,30]
[313404943,1707318649379,-500.0,0.00034235,2]
[313404944,1707318649388,-155.0,0.00034247,2]
[313404945,1707318649398,-767.12793412,0.00034262,6]
[313404946,1707318649407,-160.77,0.00034278,2]
[313404947,1707318649416,-155.0,0.00034373,4]
[313404948,1707318649426,-784.44104327,0.0003439,4]
[313404949,1707318649436,-155.95476065,0.0003439,4]
[313404950,1707318649446,-1601.85390771,0.0003439,4]
[313404951,1707318649455,-155.59501439,0.0003439,4]
[313404952,1707318649464,-856.190007,0.0003439,90]
[313404953,1707318649473,-200.0,0.0003439,2]
[313404954,1707318649483,-1088.9622463,0.0003439,4]
[313404955,1707318649491,-153.05688279,0.00034427,2]
[313404956,1707318649500,-197.53896978,0.00034443,4]
[313404957,1707318649509,-155.0,0.00034443,4]
[313404958,1707318649518,-159.30807019,0.00034443,4]
[313404959,1707318649527,-155.0,0.00034443,2]
[313404960,1707318649538,-155.4860074,0.00034443,4]
[313404961,1707318649547,-162.3492961,0.00034443,4]
[313404962,1707318649556,-155.0,0.00034443,2]
[313404963,1707318649565,-155.55867866,0.00034443,4]
[313404964,1707318649662,-360.91855771,0.00034443,4]
[313404965,1707318649671,-208.75325702,0.00034443,90]
[313404966,1707318649681,-306.23581506,0.00034443,4]
[313404967,1707318649693,-200.0,0.00034443,2]
[313404968,1707318649701,-200.50299668,0.00034443,4]
[313404969,1707318649711,-155.37702772,0.00034443,4]
[313404970,1707318649720,-205.0,0.00034454,8]
[313404971,1707318649733,-179755.3824999,0.00034522,2]
[313404972,1707318649742,-18401.339722,0.00034522,2]
[313404973,1707318649751,-7469.9408333,0.00034522,2]
[313404974,1707318649761,-157.93744737,0.00034544,4]
[313404975,1707318649770,-210.74415071,0.00034544,4]
[313404976,1707318649780,-2670.10203907,0.00034544,4]
[313404977,1707318649789,-820.1906062,0.00034544,4]